Cogmind - Beta 16.1 @@@ ROGUE MODE // 2026.03.28 @ 18:40:48 Player: star Result: Destroyed by G-47 Trooper with Particle Gun Performance ------------- Evolutions (2) 1000 Regions Visited (6) 1200 Robots Destroyed (55) 275 Value Destroyed (1817) 1817 Prototype IDs (29) 580 Alien Tech Used (0) 0 Bonus (391) 391 TOTAL SCORE: 5263 Bonus ------- Follower Combat Kills 91 Aligned with FarCom 300 Cogmind --------- Core Integrity 0/550 Matter 258/300 Energy 203/275 System Corruption 12% Temperature Cool (9) Movement Treading (160) Location -8/Storage Parts ------- > --- POWER (1) -------- Deuterium Engine > --- PROPULSION (4) --- Light Treads Improved Treads Aluminum Leg Titanium Leg > --- UTILITY (4) ------ Improved Cooling System Medium Storage Unit Targeting Computer Particle Charger > --- WEAPON (2) ------- Heavy EM Shotgun Heavy EM Shotgun > --- INVENTORY (10) --- High-capacity Matter Pod (200) Modified TNC Particle Charger Weapon Cycler Recalibrator Drone Bay (2/2) Heavy EM Shotgun Rocket Launcher Datajack Signal Generator Peak State ------------ > --- POWER ------------ Deuterium Engine > --- PROPULSION ------- Light Treads Improved Treads Aluminum Leg Titanium Leg > --- UTILITY ---------- Improved Cooling System Medium Storage Unit Targeting Computer Particle Charger > --- WEAPON ----------- Heavy EM Shotgun Heavy EM Shotgun > --- INVENTORY -------- High-capacity Matter Pod Modified TNC Weapon Cycler Recalibrator Drone Bay Heavy EM Shotgun Gauss Rifle Rocket Launcher Datajack Signal Generator [Rating: 30] Favorites ----------- Power Deuterium Engine Engine Deuterium Engine Propulsion Compact Wheel Treads Light Treads Leg Aluminum Leg Wheel Compact Wheel Utility Medium Storage Unit Device Improved Cooling System Storage Medium Storage Unit Processor Targeting Computer Protection Improved Light Armor Plating Weapon Heavy EM Shotgun Energy Gun Heavy EM Shotgun Energy Cannon Heavy Particle Cannon Ballistic Gun Light Assault Rifle Launcher Rocket Launcher Build | -11 -10 -10 -10 -9 -8 -8 ------- Run | Yrd Mat Min Exi Min Mat Sto Slots Evolved 4 | . . . . . 4 . Power . | . . . . . . . Propulsion 2 | . . . . . 2 . Utility 2 | . . . . . 2 . Weapon . | . . . . . . . Parts Attached 53 | 6 . 1 . 3 23 20 Power 6 | 1 . . . 1 4 . Engine 6 | 1 . . . 1 4 . Core . | . . . . . . . Reactor . | . . . . . . . Propulsion 13 | 2 . . . . 3 8 Treads 3 | . . . . . . 3 Leg 4 | . . . . . 1 3 Wheel 6 | 2 . . . . 2 2 Hover . | . . . . . . . Flight . | . . . . . . . Utility 12 | 1 . . . 1 6 4 Device 5 | . . . . . 3 2 Storage 2 | 1 . . . . 1 . Processor 2 | . . . . . 1 1 Hackware . | . . . . . . . Protection 3 | . . . . 1 1 1 Artifact . | . . . . . . . Weapon 22 | 2 . 1 . 1 10 8 Energy Gun 11 | 2 . 1 . . 3 5 Energy Cannon 5 | . . . . . 5 . Ballistic Gun 5 | . . . . 1 1 3 Ballistic Cannon . | . . . . . . . Launcher 1 | . . . . . 1 . Special Weapon . | . . . . . . . Impact Weapon . | . . . . . . . Slashing Weapon . | . . . . . . . Piercing Weapon . | . . . . . . . Special Melee Weapon . | . . . . . . . Unidentified Prototypes 6 | . . . . . 2 4 Corrupted Parts 2 | . . . . . 2 . System Corruption 3 | . . . . . 3 . Parts Lost 16 | . . 1 . 1 12 2 Power 2 | . . . . . 2 . Propulsion 7 | . . . . . 5 2 Utility 3 | . . . . . 3 . Weapon 4 | . . 1 . 1 2 . Highest Loss Streak 7 | . . 1 . 1 7 1 To Critical Strikes . | . . . . . . . Average Backups 6 | . 2 2 3 4 8 8 Power . | . 1 1 1 1 1 . Propulsion . | . . . . . . . Utility 3 | . . 1 1 2 3 5 Weapon 2 | . 1 . 1 1 2 2 Tool/Special . | . . . . . . . Unused Backups 10 | . 1 1 . . 1 7 Power . | . . . . . . . Propulsion . | . . . . . . . Utility 8 | . 1 1 . . . 6 Weapon 1 | . . . . . 1 . Tool/Special 1 | . . . . . . 1 Average Slot Usage (%) 80 | . 85 85 85 83 71 82 Engine 9 | . 14 14 14 14 8 7 Treads 5 | . . . . . . 12 Leg 5 | . . . . . . 13 Wheel 13 | . 28 28 28 28 14 2 Device 7 | . . . . . 11 9 Storage 10 | . 14 14 14 14 9 9 Processor 4 | . . . . . 3 7 Protection 2 | . . . . 5 6 1 Energy Gun 15 | . 28 28 28 8 5 15 Energy Cannon 2 | . . . . . 10 . Ballistic Gun 2 | . . . . 13 1 2 Peak Build Rating 30 | 6 6 6 7 8 27 30 Average Rating 17 | 4 6 5 6 7 19 24 On Entrance 7 | . 6 6 6 7 8 16 Avg Prop Armor Cover (%) 8 | . . . . . 2 10 Naked Turns . | . . . . . . . Heaviest Build 36 | 12 12 12 11 19 36 32 Greatest Support 48 | 26 26 26 26 26 48 43 Greatest Overweight (x) 7 | . . . . . 7 6 Average Overweight (x) . | . . . . . 1 . Largest Inventory Capacity 10 | 8 8 8 8 8 10 10 Average Capacity 9 | 7 8 8 8 8 9 10 Most Carried 10 | 2 3 4 4 7 10 10 Average Carried 7 | . 2 2 3 4 9 9 Final Capacity 10 | 8 8 8 8 8 10 10 Final Carried 10 | 2 3 3 4 7 8 10 Class Distribution -------------------- 78% | Mutant 21% | Scavenger-Mutant Dominant Class ---------------- Mutant | -10/Materials Mutant | -10/Mines Mutant | -10/Exiles Mutant | -9/Mines Mutant | -8/Materials Mutant | -8/Storage Resources | -11 -10 -10 -10 -9 -8 -8 ----------- Run | Yrd Mat Min Exi Min Mat Sto Matter Collected 1225 | 189 139 96 . 26 358 417 Remotely . | . . . . . . . Salvage Created 2417 | . 135 110 . 20 997 1155 Parts 116 | . 4 5 . . 53 54 Haulers Intercepted 7 | . 2 . . . 3 2 Recyclers Shooed 1 | . . . . . . 1 Parts Field Recycled . | . . . . . . . Retrieved Matter . | . . . . . . . Parts Self-Destructed . | . . . . . . . Prevented . | . . . . . . . Parts Restored . | . . . . . . . Kills | -11 -10 -10 -10 -9 -8 -8 ------- Run | Yrd Mat Min Exi Min Mat Sto Combat Hostiles Destroyed 37 | . . 2 . 1 19 15 Guns 23 | . . 2 . 1 5 15 Cannons 4 | . . . . . 4 . AOE 8 | . . . . . 8 . Classes Destroyed 14 | . 2 1 . 1 8 2 Worker 1 | . . . . . 1 . Builder 5 | . . . . . 3 2 Hauler 7 | . 2 . . . 3 2 Recycler 1 | . . . . . 1 . Mechanic 1 | . . . . . . 1 Operator 2 | . 1 . . . . 1 Watcher 1 | . . . . . . 1 Swarmer 4 | . . . . 1 3 . Cutter 1 | . . . . . 1 . Grunt 17 | . . 2 . . 7 8 Sentry 9 | . . . . . 3 6 Specialist 2 | . . . . . 2 . Hunter 3 | . . . . . 2 1 Heavy 1 | . . . . . 1 . Best Kill Streak 8 | . 1 2 . 1 8 5 Combat Bots Only 5 | . . 2 . 1 4 5 Max Kills in Single Turn 3 | . 1 1 . 1 3 1 Gunslinging . | . . . . . . . Exploded 3 | . . . . . 3 . Melee . | . . . . . . . Uniques/NPCs Destroyed . | . . . . . . . Combat | -11 -10 -10 -10 -9 -8 -8 -------- Run | Yrd Mat Min Exi Min Mat Sto Hostile Shots Fired 169 | . . 22 . 7 105 35 Missed 39 | . . 5 . 2 25 7 Hits 130 | . . 17 . 5 80 28 Melee 1 | . . . . . 1 . Projectile 129 | . . 17 . 5 79 28 AOE 3 | . . . . . 3 . Critical Strikes 3 | . . . . . 2 1 Damage Taken 2835 | . . 227 . 83 1952 573 Core 668 | . . 62 . 54 432 120 Absorbed by Shields . | . . . . . . . Core Remaining (%) 76 | 100 . . . 53 . . Volleys Fired 131 | . 8 11 . 3 55 54 Largest 2 | . 2 2 . 2 2 2 Hottest 150 | . 80 80 . 80 150 136 Shots Fired 244 | . 16 21 . 6 98 103 Gun 183 | . 16 21 . 6 37 103 Cannon 52 | . . . . . 52 . Launcher 9 | . . . . . 9 . Special . | . . . . . . . Kinetic 34 | . . . . 1 11 22 Thermal 99 | . . 8 . 2 62 27 Explosive 9 | . . . . . 9 . Electromagnetic 102 | . 16 13 . 3 16 54 Robot Hit Streak 24 | . 5 13 . 3 16 24 Robot Miss Streak 7 | . 1 2 . 2 3 7 Penetration Max . | . . . . . . . Secondary Targets . | . . . . . . . Shots Hit Robots 163 | . 12 17 . 3 68 63 Core Hits 107 | . 5 5 . 3 42 52 Critical Kills 1 | . . . . . 1 . Critical Parts Destroyed 1 | . . . . . 1 . Critical Strikes 6 | . . . . . 3 3 Burn 4 | . . . . . 1 3 Meltdown 1 | . . . . . 1 . Destroy 1 | . . . . . 1 . Melee Attacks . | . . . . . . . Impact . | . . . . . . . Slashing . | . . . . . . . Piercing . | . . . . . . . Sneak Attacks . | . . . . . . . Combat Hostiles . | . . . . . . . Follow-up Attacks . | . . . . . . . Damage Inflicted 4068 | . 206 217 . 29 2086 1530 Guns 2117 | . 170 217 . 29 397 1304 Cannons 889 | . . . . . 889 . Explosions 1062 | . 36 . . . 800 226 Melee . | . . . . . . . Ramming . | . . . . . . . Kinetic 267 | . . . . 8 52 207 Thermal 1686 | . 36 89 . . 1055 506 Explosive 714 | . . . . . 714 . Electromagnetic 1401 | . 170 128 . 21 265 817 Impact . | . . . . . . . Slashing . | . . . . . . . Piercing . | . . . . . . . Highest Corruption 12 | . . . . . 10 12 Average Corruption 9 | . . . . . 2 11 Corruption Purged . | . . . . . . . Corruption Blocked . | . . . . . . . Effects 53 | . . . . . 5 48 Message Errors 10 | . . . . . . 10 Matter Fused 16 | . . . . . 1 15 Heat Flow Errors 6 | . . . . . . 6 Energy Discharges 5 | . . . . . . 5 Parts Fused 1 | . . . . . . 1 Data Loss (minor) 4 | . . . . . . 4 Data Loss (major) 7 | . . . . . 4 3 Misfires 3 | . . . . . . 3 Weapon Failures 1 | . . . . . . 1 Overload Shots . | . . . . . . . Overflow Damage 12 | . 12 . . . . . Projectiles . | . . . . . . . Explosions 12 | . 12 . . . . . Melee . | . . . . . . . Knockbacks . | . . . . . . . Impact . | . . . . . . . Kinetic . | . . . . . . . Secondary . | . . . . . . . Self-Inflicted Damage 224 | . . . . . 95 129 Shots 6 | . . . . . 3 3 Rammed . | . . . . . . . Targets Rammed . | . . . . . . . Kicked . | . . . . . . . Crushed . | . . . . . . . Highest Temperature 245 | . 74 232 . 54 128 245 Average Temperature 66 | . 28 109 . 28 43 113 Received Heat Transfer 711 | . . 126 . 36 351 198 Effects 2 | . . 2 . . . . Interference 2 | . . 2 . . . . Siege Activations . | . . . . . . . Martial Activations . | . . . . . . . Shielding Activations . | . . . . . . . Robots Disrupted 1 | . . . . . . 1 Combat Hostiles 1 | . . . . . . 1 Robots Corrupted . | . . . . . . . Combat Hostiles . | . . . . . . . Parts Fried 9 | . 4 . . . 1 4 Impact Corruptions . | . . . . . . . Robots Melted 2 | . . . . . 2 . Combat Hostiles 2 | . . . . . 2 . Parts Melted 5 | . . . . . 4 1 Heat Transferred 2955 | . 50 200 . . 1715 990 Parts Sabotaged . | . . . . . . . Parts Stolen . | . . . . . . . Parts Stripped . | . . . . . . . Power Chain Reactions 6 | . 1 . . . 2 3 Alert | -11 -10 -10 -10 -9 -8 -8 ------- Run | Yrd Mat Min Exi Min Mat Sto Maximum Alert Level 1 | . . . . . 1 . Low Security (%) 92 | 100 100 100 . 100 74 100 Level 1 7 | . . . . . 25 . Level 2 . | . . . . . . . Level 3 . | . . . . . . . Level 4 . | . . . . . . . Level 5 . | . . . . . . . High Security . | . . . . . . . Max Security . | . . . . . . . Peak Influence 246 | . 38 40 . 81 246 160 Initial 85 | . . . . . 14 85 Average 90 | . 7 9 . 54 154 86 Influence Increases 1495 | . 52 50 . 159 671 563 Destroy 0b10 Robot/C 840 | . . 40 . 120 380 300 Destroy 0b10 Robot/NC 110 | . 15 . . . 45 50 Destroy Leader 248 | . 4 10 . 20 108 106 Allied During Kill 22 | . . . . 19 3 . Disable Machine 165 | . 30 . . . 60 75 Destroy Structure 65 | . 3 . . . 45 17 Partial Spotted 15 | . . . . . . 15 Lose Combat Pursuer 30 | . . . . . 30 . Influence Decreases 1349 | . 52 40 10 121 507 619 Entered New Map 151 | . . . 10 . 24 117 Time Decay 993 | . 52 40 . 91 328 482 Lost Part 150 | . . . . 10 120 20 Lost Ally 55 | . . . . 20 35 . Squads Dispatched 7 | . . . . 1 4 2 Investigation 1 | . . . . . . 1 Extermination . | . . . . . . . Reinforcement 5 | . . . . . 4 1 Assault 1 | . . . . 1 . . Garrison . | . . . . . . . Intercept . | . . . . . . . Searches Triggered . | . . . . . . . Construction Impeded . | . . . . . . . Haulers Reinforced . | . . . . . . . Active Scanning Responses . | . . . . . . . Cargo Convoy Interrupts . | . . . . . . . Stealth | -11 -10 -10 -10 -9 -8 -8 --------- Run | Yrd Mat Min Exi Min Mat Sto Distress Signals 6 | . . . . . 4 2 Communications Jammed . | . . . . . . . Distress Signals . | . . . . . . . Times Spotted 61 | . 3 2 . 6 28 22 Peak Tracking Total 7 | . 2 2 . 3 7 4 Tactical Retreats 2 | . . . . . 2 . Traps | -11 -10 -10 -10 -9 -8 -8 ------- Run | Yrd Mat Min Exi Min Mat Sto Traps Triggered 3 | . . . . . . 3 Indirectly . | . . . . . . . Trap Hack Attempts . | . . . . . . . Triggered . | . . . . . . . Disarmed . | . . . . . . . Reprogrammed . | . . . . . . . Reused . | . . . . . . . Traps Extracted . | . . . . . . . Installed . | . . . . . . . Triggered . | . . . . . . . Machines | -11 -10 -10 -10 -9 -8 -8 ---------- Run | Yrd Mat Min Exi Min Mat Sto Machines Disabled 11 | . 2 . . . 4 5 Max in Single Turn 2 | . 2 . . . 1 1 Garrison Access 1 | . . . . . . 1 Machines Repaired . | . . . . . . . Machines Dismantled . | . . . . . . . Machines Sabotaged . | . . . . . . . Overloaded Fab Kills . | . . . . . . . Hacking | -11 -10 -10 -10 -9 -8 -8 --------- Run | Yrd Mat Min Exi Min Mat Sto Machines Accessed 8 | . 1 . 1 . 1 5 Terminals 5 | . 1 . . . . 4 Fabricators . | . . . . . . . Repair Stations . | . . . . . . . Recycling Units . | . . . . . . . Scanalyzers 1 | . . . . . 1 . Garrison Access 1 | . . . . . . 1 Total Hacks 13 | . 2 . 1 . 3 7 Successful 7 | . . . 1 . 2 4 Failed 6 | . 2 . . . 1 3 Catastrophic 2 | . 1 . . . . 1 Database Lockouts . | . . . . . . . Manual 4 | . 2 . 1 . . 1 Terminals 8 | . 2 . . . . 6 Fabricators . | . . . . . . . Repair Stations . | . . . . . . . Recycling Units . | . . . . . . . Scanalyzers 3 | . . . . . 3 . Garrison Access 1 | . . . . . . 1 Terminal Hacks 4 | . . . 1 . . 3 Record 1 | . . . . . . 1 Open Door 1 | . . . . . . 1 Hauler Manifests 1 | . . . . . . 1 Proto ID Catalog 1 | . . . 1 . . . Fabricator Hacks . | . . . . . . . Repair Station Hacks . | . . . . . . . Recycling Unit Hacks . | . . . . . . . Scanalyzer 2 | . . . . . 2 . Insert Component 1 | . . . . . 1 . Analyze 1 | . . . . . 1 . Garrison Access Hacks 1 | . . . . . . 1 Seal Access 1 | . . . . . . 1 Unauthorized Hacks . | . . . . . . . Terminals . | . . . . . . . Fabricators . | . . . . . . . Repair Stations . | . . . . . . . Recycling Units . | . . . . . . . Scanalyzers . | . . . . . . . Garrison Access . | . . . . . . . Data Cores Recovered . | . . . . . . . Used . | . . . . . . . Hacking Detections 3 | . 1 . . . 1 1 Full Trace Events 3 | . 1 . . . 1 1 Feedback Events . | . . . . . . . Feedback Blocked . | . . . . . . . Robot Schematics Acquired . | . . . . . . . Robots Built . | . . . . . . . Authchips . | . . . . . . . Time . | . . . . . . . Total Robot Build Rating . | . . . . . . . Part Schematics Acquired 1 | . . . . . 1 . Parts Built . | . . . . . . . Authchips . | . . . . . . . Time . | . . . . . . . Total Part Build Rating . | . . . . . . . Part Studies Acquired . | . . . . . . . Parts Repaired . | . . . . . . . Time . | . . . . . . . Parts Recycled . | . . . . . . . Recycled Matter . | . . . . . . . Retrieved Matter . | . . . . . . . Retrieved Components . | . . . . . . . Parts Scanalyzed 1 | . . . . . 1 . Part Schematics Acquired 1 | . . . . . 1 . Parts Damaged . | . . . . . . . Bothacking | -11 -10 -10 -10 -9 -8 -8 ------------ Run | Yrd Mat Min Exi Min Mat Sto Used RIF Installer . | . . . . . . . Robots Hacked . | . . . . . . . Non-combat . | . . . . . . . Combat . | . . . . . . . Robot Hacks Applied . | . . . . . . . Relay Couplers Released . | . . . . . . . Fabnet Peak Effective % . | . . . . . . . Robots Rewired . | . . . . . . . Allies Hacked . | . . . . . . . Hacks Repelled . | . . . . . . . Allies | -11 -10 -10 -10 -9 -8 -8 -------- Run | Yrd Mat Min Exi Min Mat Sto Total Allies 4 | . . 3 . 1 . . Largest Group 3 | . . 3 3 3 3 . Highest-Rated Group 63 | . . 40 40 63 63 . Highest-Rated Ally 31 | . . 16 16 31 31 . Total Orders . | . . . . . . . Ally Attacks 32 | . . . . 18 14 . Total Damage 388 | . . . . 224 164 . Kills 7 | . . . . 5 2 . Allies Corrupted . | . . . . . . . Allies Melted . | . . . . . . . Intel | -11 -10 -10 -10 -9 -8 -8 ------- Run | Yrd Mat Min Exi Min Mat Sto Active Infowar (turns) . | . . . . . . . Robot Analysis Total . | . . . . . . . Derelict Logs Recovered 1 | . . . . 1 . . Drone Launches . | . . . . . . . Drone Recoveries . | . . . . . . . Exploration | -11 -10 -10 -10 -9 -8 -8 ------------- Run | Yrd Mat Min Exi Min Mat Sto Turns Passed 2922 | 59 172 197 273 214 753 1254 Spaces Moved 1737 | 56 161 149 274 174 401 522 Core 62 | 4 . . . . 19 39 Treads 373 | . . . . . . 373 Legs 72 | . . . . . 2 70 Wheels 1230 | 52 161 149 274 174 380 40 Hover . | . . . . . . . Flight . | . . . . . . . Fastest Speed 50 | 50 90 90 90 90 90 85 Average Speed 123 | 85 90 90 90 90 123 174 Slowest Speed 400 | 90 90 90 90 90 400 350 Overloaded Moves . | . . . . . . . Propulsion Burnouts . | . . . . . . . Robots Hopped . | . . . . . . . Potential Cave-ins . | . . . . . . . Cave-ins Triggered 1 | . . . . . 1 . Exploration Rate (%) 38 | 4 32 30 61 50 36 56 Regions Visited 6 Branch Regions 4 Pre-discovered Areas . | . . . . . . . Known Exits Taken . | . . . . . . . Unknown Exits Taken 6 | 1 1 1 1 1 1 . Scrap Searched 1 | . . . . 1 . . Spaces Dug . | . . . . . . . Terrain Destroyed 69 | . 2 . . . 54 13 Melee . | . . . . . . . Projectile 6 | . . . . . 6 . AOE 63 | . 2 . . . 48 13 Terrain Rammed . | . . . . . . . Walls Destroyed . | . . . . . . . Machines Disabled . | . . . . . . . Actions | -11 -10 -10 -10 -9 -8 -8 --------- Run | Yrd Mat Min Exi Min Mat Sto Total 2269 | 64 172 191 300 223 564 755 Wait 297 | 1 1 28 26 42 60 139 Move 1731 | 55 160 148 273 173 400 522 Hop . | . . . . . . . Pick Up 25 | 2 2 2 1 2 8 8 Fast Attach 22 | 6 . . . 1 7 8 Attach 7 | . . 1 . . 5 1 Detach 2 | . . . . . 2 . Swap 36 | . . . . 2 17 17 Drop 18 | . 1 1 . . 10 6 Fire 131 | . 8 11 . 3 55 54 Melee . | . . . . . . . Ram . | . . . . . . . Kick . | . . . . . . . Crush . | . . . . . . . Escape Stasis . | . . . . . . . Rewire . | . . . . . . . Trap . | . . . . . . . Miscellaneous . | . . . . . . . Route ------- -11/Scrapyard -10/Materials (discovered 2 exits: [*Mat] / [*Min]) -10/Mines (discovered 2 exits: [*Mat] / *Exi) -10/Exiles -9/Mines (discovered 2 exits: *Mat x2) -8/Materials (discovered 2 exits: [*Fac] / *Sto) -8/Storage (discovered 1 exit: Rec) History --------- Turn | Location | Event 32 | -11/Scrapyard | Discovered new exit (range 14) 60 | -11/Scrapyard | Entered Materials 182 | -10/Materials | Discovered new exit (range 13) 219 | -10/Materials | Discovered new exit (range 15) 232 | -10/Materials | Entered Mines 302 | -10/Mines | Build established: Mutant 386 | -10/Mines | Discovered new exit (range 6) 393 | -10/Mines | Received a Rocket Launcher from a helpful Derelict 408 | -10/Mines | Assisted by bots powering up and referring to "LRC-V3" 414 | -10/Mines | Deemed a non-threat by the Exiles lab entrance 415 | -10/Mines | Discovered new exit (range 5) 429 | -10/Mines | Entered Exiles 429 | -10/Exiles | Accompanied by 3 allies 454 | -10/Exiles | Met 8R-AWN 466 | -10/Exiles | Met EX-HEX 493 | -10/Exiles | Met EX-BIN 504 | -10/Exiles | Aligned with FarCom system 505 | -10/Exiles | Given EX-Vault access code 531 | -10/Exiles | Opened EX-Vault 540 | -10/Exiles | Found Modified TNC 559 | -10/Exiles | Warned to stay clear of 0b10 Research branches 629 | -10/Exiles | Met EX-DEC 660 | -10/Exiles | Discovered new exit (range 14) 702 | -10/Exiles | Left Exiles lab with Modified TNC 702 | -10/Exiles | Entered Mines 702 | -9/Mines | Accompanied by 3 allies 809 | -9/Mines | Discovered new exit (range 9) 886 | -9/Mines | Discovered new exit (range 7) 887 | -9/Mines | Met a Derelict testing a Signal Generator 913 | -9/Mines | Found Signal Generator 916 | -9/Mines | Entered Materials 916 | -8/Materials | Accompanied by 3 allies 916 | -8/Materials | Evolved 4 slots: Propulsion x2, Utility x2 1550 | -8/Materials | Discovered new exit (range 11) 1578 | -8/Materials | Core integrity fell below 50% 1604 | -8/Materials | Crushed by falling debris 1604 | -8/Materials | System corruption reached 10% 1635 | -8/Materials | Lost 7 parts (1p2n2u2w) 1659 | -8/Materials | Discovered new exit (range 14) 1669 | -8/Materials | Entered Storage 1670 | -8/Storage | Identified exit to Recycling 1863 | -8/Storage | Core integrity fell below 20% 2255 | -8/Storage | Build established: Scavenger-Mutant 2564 | -8/Storage | Door terminal overloaded 2807 | -8/Storage | Build established: Mutant 2923 | -8/Storage | Destroyed by G-47 Trooper with Particle Gun Last Messages --------------- 02784_ System corrupted: Heat flow error (+250). 02796_ G-47 Trooper destroyed. 02796_ Door malfunctions. 02802_ G-47 Trooper destroyed. 02805_ PF/K=EV9GG>%T| CGTXO3XRKK 5= 02808_ G-47 Trooper destroyed. 02817_ R-06 Scavenger collects Corrupted Lgt. Ion Engine. 02820_ System corrupted: Matter fused (-5). 02820_ Acquired 5 matter. 02837_ System corrupted: Matter fused (-7). 02856_ Acquired Unknown Device. 02856_ Identified Particle Charger. 02858_ Acquired Utility Shielding. 02861_ Dropped Gauss Rifle. 02862_ Acquired Particle Charger. 02879_ System corrupted: Component data lost. 02897_ System corrupted: Substantial component data lost. 02912_ System corrupted: Matter fused (-5). 02919_ G-47 Trooper shuts down. 02919_ Chain reaction triggered in Lgt. Nuclear Core. Map ----- +----------------------------------------------------+ | ????????????????????????????????###### # | | ????????????????????????????????# # | | ????????????????????????????????#%= !!# | | ??????????????????????????????###== ! # | | ??????????????????????????????#%+*% # | | ??????????????????????????>???# #[[ # | | ??????????????????????????????# #[ * # | | ?????????????????????????""""?#%######## | | ????????????????????????## #?# #??????? | | ????????????????????????# #?# #??????? | | ?????????????????????????# #?# #??????? | | ?????????????????????????# #?# #??????? | | ?????????????????????????# ### ####???? | | ?????????????????????????# ^ #T####? | | ?????????????????????????# + "!!#? | | ?????????????????????????# # [ !#? | | ?????????????????????????#^ """ # "!!#? | | ?????????????????????????+ G" ######? | | ?????????????????????????# """ #?????? | | ????????????????#???#+??## #?????? | | ????????????????# ### ### #?????? | | ????????????##### ! ###+#?????? | | ???????? *%| #?????????? | | ??????????# = #?????????? | | ??????????# ##;;gg ####???????? | | ??????????#+## ?# @ ! #???????? | | ?????????????#### ??#! #???????? | | ????????????????# ???# #???????? | | ????????????????#????# #???????? | | ?????????????????????# / #???????? | | ?????????????????????# #???????? | | ?????????????????????# = #???????? | | ?????????????????????# ] #???????? | | ?????????????????????##/########???????? | | ????????###############%#??????????????? | | ??????? =#####??????????? | | ??????? =%+ ]#??????????? | | ??????? # ###??????????? | | ????????#+#########+###+###????????????? | | ?????????????# #?????????????? | | ?????????????# #?????????????? | | ?????????????# #?????????????? | | ?????????????# #?????????????? | | ?????????????# #?????????????? | | ?????????????# #?????????????? | | ?????????????# #?????????????? | | ?????????????########+####?????????????? | | ################### #??????????????? | | *!! #??????????????? | | %= !%!!T #??????????????? | +----------------------------------------------------+ Best States ------------- Heat Dissipation 58 Energy Generation 14 Energy Capacity 280 Matter Stores 300 Matter Capacity 300 Sight Range 16 Terrain Scan Density 10 Armor Coverage 150 Utility Shielding 33 Evasion (%) 42 Targeting Accuracy 8 Recoil Reduction 2 Particle Charging 15 Item Schematics ----------------- Adv. Targeting Computer | -8/Materials | Scanalyzed Robot Schematics ------------------ None Fabricated ------------ Nothing Repaired ---------- Nothing Studied --------- None Alien Tech Used ----------------- None Achievements -------------- None Challenges ------------ None Game ------ Seed AuthchipPowerRailgun Manual? 0 Play Time 00:24:47 Cumulative 179.8 hours Start 2026.03.28 @ 13:52:33 End 2026.03.28 @ 18:40:48 Sessions 1 Manual Loads 0 Difficulty Rogue Special Mode None Game No. 305 Rogue 305 Adventurer 0 Explorer 0 Win Type - Total 1 Types 1/0/0/0/0/0/0/0/0/0 Lore% 57 Gallery% 57 Achievement% 40 Wizard Run 0 Options --------- Layout 2 ASCII 0 Keyboard 1 Movement Numpad Keybinds 0 Fullscreen 1 Font 20/SmallcapsGlow Map View 64x51 Zoom Use 0% Tactical HUD 1 Map Filters NONE Filters NONE Steam 1 RUN: 230028d8-8d83-4af0-860d-a0fc7252785c